[Event "NJSK 2023 Jeugd B"]
[Site "Almelo, Netherlands"]
[Date "2023.04.30"]
[Round "1.6"]
[White "Blom, Rens"]
[Black "Van Hesselingen, Guido"]
[Result "1-0"]
[TimeControl "90min/40moves + 30min + 30sec/move"]
[WhiteElo "1747"]
[BlackElo "1924"]

1. c4 {[%clk 01:30:50]} {[%emt 00:00:04]} e6 {[%clk 01:30:53]} {[%emt
00:00:13]} 2. e4 {[%clk 01:31:14]} {[%emt 00:00:07]} d5 {[%clk 01:30:57]}
{[%emt 00:00:25]} 3. cxd5 {[%clk 01:31:37]} {[%emt 00:00:07]} exd5 {[%clk
01:31:04]} {[%emt 00:00:23]} 4. exd5 {[%clk 01:31:59]} {[%emt 00:00:08]} Nf6
{[%clk 01:30:11]} {[%emt 00:01:23]} 5. Bb5+ {[%clk 01:32:21]} {[%emt 00:00:09]}
Bd7 {[%clk 01:29:37]} {[%emt 00:01:04]} 6. Bc4 {[%clk 01:32:44]} {[%emt
00:00:08]} Be7 {[%clk 01:25:20]} {[%emt 00:04:46]} 7. Nf3 {[%clk 01:30:24]}
{[%emt 00:02:50]} O-O {[%clk 01:24:16]} {[%emt 00:01:33]} 8. O-O {[%clk
01:28:13]} {[%emt 00:02:42]} Bg4 {[%clk 01:21:02]} {[%emt 00:03:43]} 9. h3
{[%clk 01:23:15]} {[%emt 00:05:29]} Bh5 {[%clk 01:20:36]} {[%emt 00:00:55]} 10.
Nc3 {[%clk 01:14:17]} {[%emt 00:09:29]} Nbd7 {[%clk 01:18:42]} {[%emt
00:02:23]} 11. Re1 {[%clk 01:05:43]} {[%emt 00:09:05]} Nb6 {[%clk 01:14:31]}
{[%emt 00:04:40]} 12. Bb3 {[%clk 01:05:45]} {[%emt 00:00:29]} Re8 {[%clk
01:14:04]} {[%emt 00:00:56]} 13. g4 {[%clk 00:57:50]} {[%emt 00:08:25]} Bg6
{[%clk 01:12:21]} {[%emt 00:02:12]} 14. Ne5 {[%clk 00:57:29]} {[%emt 00:00:52]}
Nfxd5 {[%clk 00:51:39]} {[%emt 00:21:11]} 15. d4 {[%clk 00:53:59]} {[%emt
00:04:01]} Nxc3 {[%clk 00:34:57]} {[%emt 00:17:12]} 16. bxc3 {[%clk 00:54:18]}
{[%emt 00:00:12]} Bf6 {[%clk 00:35:07]} {[%emt 00:00:20]} 17. f4 {[%clk
00:35:12]} {[%emt 00:19:36]} Bxe5 {[%clk 00:35:12]} {[%emt 00:00:24]} 18. fxe5
{[%clk 00:32:57]} {[%emt 00:02:46]} Qh4 {[%clk 00:33:00]} {[%emt 00:02:41]} 19.
Kg2 {[%clk 00:27:57]} {[%emt 00:05:31]} Rad8 {[%clk 00:31:59]} {[%emt
00:01:30]} 20. Ba3 {[%clk 00:27:14]} {[%emt 00:01:14]} Nd7 {[%clk 00:25:55]}
{[%emt 00:06:33]} 21. Qf3 {[%clk 00:21:30]} {[%emt 00:06:14]} h5 {[%clk
00:21:43]} {[%emt 00:04:42]} 22. e6 {[%clk 00:19:29]} {[%emt 00:02:31]} fxe6
{[%clk 00:20:59]} {[%emt 00:01:14]} 23. Rxe6 {[%clk 00:19:51]} {[%emt
00:00:08]} Rxe6 {[%clk 00:18:59]} {[%emt 00:02:30]} 24. Bxe6+ {[%clk 00:20:20]}
Kh8 {[%clk 00:18:43]} {[%emt 00:00:46]} 25. Bf7 {[%clk 00:15:23]} {[%emt
00:05:27]} Bxf7 {[%clk 00:16:34]} {[%emt 00:02:39]} 26. Qxf7 {[%clk 00:15:51]}
{[%emt 00:00:02]} hxg4 {[%clk 00:16:47]} {[%emt 00:00:17]} 27. Rh1 {[%clk
00:15:04]} {[%emt 00:01:18]} g3 {[%clk 00:16:16]} {[%emt 00:01:01]} 28. Re1
{[%clk 00:14:22]} {[%emt 00:01:12]} Nf6 {[%clk 00:10:17]} {[%emt 00:06:29]} 29.
Be7 {[%clk 00:10:59]} {[%emt 00:03:53]} Qf4 {[%clk 00:08:06]} {[%emt 00:02:40]}
30. Rf1 {[%clk 00:09:42]} {[%emt 00:01:47]} Qd2+ {[%clk 00:06:35]} {[%emt
00:02:02]} 31. Kxg3 {[%clk 00:07:03]} {[%emt 00:03:09]} Ne4+ {[%clk 00:06:30]}
{[%emt 00:00:35]} 32. Kh4 {[%clk 00:06:59]} {[%emt 00:00:32]} Qh6+ {[%clk
00:04:27]} {[%emt 00:02:35]} 33. Kg4 {[%clk 00:07:04]} {[%emt 00:00:26]} Nf6+
{[%clk 00:02:51]} {[%emt 00:02:06]} 34. Rxf6 {[%clk 00:06:58]} {[%emt
00:00:35]} Qd2 {[%clk 00:01:14]} {[%emt 00:02:06]} 35. Bxd8 {[%clk 00:05:35]}
{[%emt 00:01:53]} Qg2+ {[%clk 00:01:35]} {[%emt 00:00:09]} 36. Kh4 {[%clk
00:05:51]} {[%emt 00:00:15]} g5+ {[%clk 00:01:27]} {[%emt 00:00:38]} 37. Kh5
{[%clk 00:06:12]} {[%emt 00:00:08]} Qxh3+ {[%clk 00:01:39]} {[%emt 00:00:18]}
38. Kg6 {[%clk 00:06:11]} {[%emt 00:00:31]} 1-0

[Event "NJSK 2023 Jeugd B"]
[Site "Almelo, Netherlands"]
[Date "2023.04.30"]
[Round "1.7"]
[White "Niemeijer, Leon"]
[Black "Knippenberg, Hidde"]
[Result "1-0"]
[TimeControl "90min/40moves + 30min + 30sec/move"]
[WhiteElo "1903"]
[BlackElo "1728"]

1. d4 {[%clk 01:30:57]} {[%emt 00:00:02]} Nf6 {[%clk 01:30:55]} {[%emt
00:00:04]} 2. c4 {[%clk 01:31:23]} {[%emt 00:00:04]} d6 {[%clk 01:31:18]}
{[%emt 00:00:07]} 3. Nf3 {[%clk 01:31:12]} {[%emt 00:00:41]} g6 {[%clk
01:31:41]} {[%emt 00:00:07]} 4. g3 {[%clk 01:31:21]} {[%emt 00:00:21]} Bg7
{[%clk 01:32:05]} {[%emt 00:00:06]} 5. Bg2 {[%clk 01:31:32]} {[%emt 00:00:19]}
Nbd7 {[%clk 01:31:50]} {[%emt 00:00:45]} 6. Nc3 {[%clk 01:31:29]} {[%emt
00:00:33]} c6 {[%clk 01:30:54]} {[%emt 00:01:27]} 7. O-O {[%clk 01:30:00]}
{[%emt 00:01:58]} O-O {[%clk 01:31:18]} {[%emt 00:00:06]} 8. b3 {[%clk
01:24:28]} {[%emt 00:06:03]} Qc7 {[%clk 01:26:10]} {[%emt 00:05:37]} 9. Bb2
{[%clk 01:23:30]} {[%emt 00:01:27]} e5 {[%clk 01:25:47]} {[%emt 00:00:54]} 10.
dxe5 {[%clk 01:03:57]} {[%emt 00:20:03]} dxe5 {[%clk 01:24:24]} {[%emt
00:01:53]} 11. Qc2 {[%clk 01:04:10]} {[%emt 00:00:18]} Nc5 {[%clk 01:13:32]}
{[%emt 00:11:22]} 12. Rad1 {[%clk 00:58:07]} {[%emt 00:06:31]} Bf5 {[%clk
01:12:06]} {[%emt 00:01:56]} 13. Qc1 {[%clk 00:56:50]} {[%emt 00:01:47]} Rfe8
{[%clk 01:05:51]} {[%emt 00:06:46]} 14. b4 {[%clk 00:54:05]} {[%emt 00:03:16]}
Nce4 {[%clk 00:56:04]} {[%emt 00:10:16]} 15. Qa1 {[%clk 00:47:31]} {[%emt
00:07:03]} Nd6 {[%clk 00:52:22]} {[%emt 00:04:12]} 16. Nxe5 {[%clk 00:31:02]}
{[%emt 00:17:00]} Rxe5 {[%clk 00:51:20]} {[%emt 00:01:33]} 17. Nd5 {[%clk
00:20:37]} {[%emt 00:10:54]} Nxd5 {[%clk 00:37:39]} {[%emt 00:14:11]} 18. cxd5
{[%clk 00:19:52]} {[%emt 00:01:15]} f6 {[%clk 00:38:05]} {[%emt 00:00:05]} 19.
Bxe5 {[%clk 00:19:22]} {[%emt 00:01:00]} fxe5 {[%clk 00:38:27]} {[%emt
00:00:07]} 20. dxc6 {[%clk 00:18:48]} {[%emt 00:01:05]} bxc6 {[%clk 00:38:47]}
{[%emt 00:00:09]} 21. Qc3 {[%clk 00:17:39]} {[%emt 00:01:39]} e4 {[%clk
00:38:30]} {[%emt 00:00:47]} 22. Qc5 {[%clk 00:16:47]} {[%emt 00:01:22]} Bf8
{[%clk 00:32:15]} {[%emt 00:06:46]} 23. a4 {[%clk 00:15:23]} {[%emt 00:01:54]}
Re8 {[%clk 00:30:22]} {[%emt 00:02:21]} 24. Rc1 {[%clk 00:08:39]} {[%emt
00:07:15]} Bd7 {[%clk 00:30:07]} {[%emt 00:00:44]} 25. b5 {[%clk 00:08:45]}
{[%emt 00:00:25]} Rc8 {[%clk 00:29:06]} {[%emt 00:01:31]} 26. Rfd1 {[%clk
00:05:55]} {[%emt 00:03:20]} Qb7 {[%clk 00:25:26]} {[%emt 00:04:10]} 27. Bxe4
{[%clk 00:05:18]} {[%emt 00:01:08]} Nxe4 {[%clk 00:23:21]} {[%emt 00:02:34]} 28.
Qc4+ {[%clk 00:05:47]} {[%emt 00:00:02]} Kh8 {[%clk 00:23:48]} {[%emt
00:00:02]} 29. Qxe4 {[%clk 00:06:15]} {[%emt 00:00:02]} Be8 {[%clk 00:21:42]}
{[%emt 00:02:36]} 30. Rc2 {[%clk 00:04:16]} {[%emt 00:02:29]} a6 {[%clk
00:21:42]} {[%emt 00:00:31]} 31. Rcd2 {[%clk 00:03:48]} {[%emt 00:00:57]} Qa8
{[%clk 00:21:27]} {[%emt 00:00:45]} 32. b6 {[%clk 00:03:43]} {[%emt 00:00:35]}
Bf7 {[%clk 00:20:53]} {[%emt 00:01:04]} 33. Rd7 {[%clk 00:03:40]} {[%emt
00:00:33]} Re8 {[%clk 00:20:41]} {[%emt 00:00:42]} 34. b7 {[%clk 00:03:07]}
{[%emt 00:01:03]} Qa7 {[%clk 00:19:59]} {[%emt 00:01:12]} 35. Qf4 {[%clk
00:03:07]} {[%emt 00:00:30]} Bd5 {[%clk 00:20:09]} {[%emt 00:00:20]} 36. e4
{[%clk 00:02:49]} {[%emt 00:00:48]} Be6 {[%clk 00:19:02]} {[%emt 00:01:37]} 37.
Qf6+ {[%clk 00:02:07]} {[%emt 00:01:11]} Kg8 {[%clk 00:19:23]} {[%emt
00:00:10]} 38. Rd8 {[%clk 00:02:08]} {[%emt 00:00:28]} Bf7 {[%clk 00:18:53]}
{[%emt 00:01:01]} 39. b8=Q {[%clk 00:01:52]} {[%emt 00:00:47]} Qxb8 {[%clk
00:18:26]} {[%emt 00:00:56]} 40. Rxb8 {[%clk 00:02:18]} {[%emt 00:00:04]} Rxb8
{[%clk 00:18:51]} {[%emt 00:00:05]} 41. Rd7 {[%clk 00:01:46]} {[%emt 00:01:01]}
Rb1+ {[%clk 00:19:01]} {[%emt 00:00:20]} 42. Kg2 {[%clk 00:02:12]} {[%emt
00:00:05]} Bc4 {[%clk 00:19:26]} {[%emt 00:00:04]} 43. Rd8 {[%clk 00:01:03]}
{[%emt 00:01:40]} 1-0

[Event "NJSK 2023 Jeugd B"]
[Site "Almelo, Netherlands"]
[Date "2023.04.30"]
[Round "1.8"]
[White "Veraart, Jan"]
[Black "Van Foreest, Nanne"]
[Result "0-1"]
[TimeControl "90min/40moves + 30min + 30sec/move"]
[WhiteElo "1560"]
[BlackElo "1893"]

1. e4 {[%clk 01:30:57]} {[%emt 00:00:02]} c5 {[%clk 01:30:55]} {[%emt
00:00:05]} 2. Nc3 {[%clk 01:31:24]} {[%emt 00:00:04]} Nc6 {[%clk 01:31:23]}
{[%emt 00:00:02]} 3. Bb5 {[%clk 01:31:50]} {[%emt 00:00:04]} Nd4 {[%clk
01:31:50]} {[%emt 00:00:04]} 4. Nf3 {[%clk 01:32:17]} {[%emt 00:00:03]} a6
{[%clk 01:32:11]} {[%emt 00:00:09]} 5. Bd3 {[%clk 01:32:42]} {[%emt 00:00:04]}
g6 {[%clk 01:32:37]} {[%emt 00:00:04]} 6. O-O {[%clk 01:33:05]} {[%emt
00:00:06]} Bg7 {[%clk 01:33:01]} {[%emt 00:00:07]} 7. Re1 {[%clk 01:33:32]}
{[%emt 00:00:03]} e6 {[%clk 01:33:27]} {[%emt 00:00:04]} 8. Rb1 {[%clk
01:33:55]} {[%emt 00:00:06]} Nc6 {[%clk 01:33:54]} {[%emt 00:00:04]} 9. Nd5
{[%clk 01:33:02]} {[%emt 00:01:23]} d6 {[%clk 01:31:29]} {[%emt 00:02:54]} 10.
Ne3 {[%clk 01:28:56]} {[%emt 00:04:36]} g5 {[%clk 01:27:27]} {[%emt 00:04:33]}
11. h3 {[%clk 00:43:47]} {[%emt 00:45:38]} h5 {[%clk 01:27:49]} {[%emt
00:00:08]} 12. Nh2 {[%clk 00:44:08]} {[%emt 00:00:09]} Ne5 {[%clk 01:27:37]}
{[%emt 00:00:43]} 13. Be2 {[%clk 00:43:54]} {[%emt 00:00:43]} Nf6 {[%clk
01:19:49]} {[%emt 00:08:19]} 14. Nef1 {[%clk 00:35:47]} {[%emt 00:08:37]} Ng6
{[%clk 00:43:48]} {[%emt 00:36:31]} 15. d3 {[%clk 00:24:49]} {[%emt 00:11:27]}
Nf4 {[%clk 00:43:25]} {[%emt 00:00:53]} 16. Bxf4 {[%clk 00:23:21]} {[%emt
00:01:59]} gxf4 {[%clk 00:43:49]} {[%emt 00:00:07]} 17. e5 {[%clk 00:23:07]}
{[%emt 00:00:43]} dxe5 {[%clk 00:40:12]} {[%emt 00:04:07]} 18. Bf3 {[%clk
00:23:07]} {[%emt 00:00:29]} Nd5 {[%clk 00:35:27]} {[%emt 00:05:16]} 19. Nd2
{[%clk 00:17:44]} {[%emt 00:05:52]} Bd7 {[%clk 00:26:49]} {[%emt 00:09:10]} 20.
Ne4 {[%clk 00:17:04]} {[%emt 00:01:10]} Rc8 {[%clk 00:24:18]} {[%emt 00:03:01]}
21. Bxh5 {[%clk 00:17:12]} {[%emt 00:00:20]} Bc6 {[%clk 00:22:02]} {[%emt
00:02:46]} 22. Nxc5 {[%clk 00:16:43]} {[%emt 00:00:58]} Kf8 {[%clk 00:18:49]}
{[%emt 00:03:44]} 23. Qe2 {[%clk 00:12:26]} {[%emt 00:04:47]} Nf6 {[%clk
00:18:07]} {[%emt 00:01:12]} 24. Bg4 {[%clk 00:11:41]} {[%emt 00:01:14]} Bd5
{[%clk 00:12:05]} {[%emt 00:06:33]} 25. Nb3 {[%clk 00:10:29]} {[%emt 00:01:42]}
Nxg4 {[%clk 00:12:17]} {[%emt 00:00:18]} 26. Nxg4 {[%clk 00:10:48]} {[%emt
00:00:11]} f3 {[%clk 00:12:16]} {[%emt 00:00:32]} 27. Qe3 {[%clk 00:09:21]}
{[%emt 00:01:55]} fxg2 {[%clk 00:12:22]} {[%emt 00:00:25]} 28. c4 {[%clk
00:09:31]} {[%emt 00:00:20]} Bc6 {[%clk 00:12:35]} {[%emt 00:00:18]} 29. Nd2
{[%clk 00:08:59]} {[%emt 00:01:02]} Qh4 {[%clk 00:12:28]} {[%emt 00:00:36]} 30.
Ne4 {[%clk 00:06:18]} {[%emt 00:03:11]} f5 {[%clk 00:11:48]} {[%emt 00:01:10]}
31. Ng5 {[%clk 00:04:19]} {[%emt 00:02:29]} fxg4 {[%clk 00:11:14]} {[%emt
00:01:04]} 32. Nxe6+ {[%clk 00:03:54]} {[%emt 00:00:53]} Kg8 {[%clk 00:11:36]}
{[%emt 00:00:10]} 33. Nxg7 {[%clk 00:02:27]} {[%emt 00:01:58]} gxh3 {[%clk
00:11:45]} {[%emt 00:00:21]} 0-1

[Event "NJSK 2023 Jeugd B"]
[Site "Almelo, Netherlands"]
[Date "2023.05.01"]
[Round "2.1"]
[White "Ponomarev, Ivan"]
[Black "Kumar, Prajit Sai"]
[Result "0-1"]
[TimeControl "90min/40moves + 30min + 30sec/move"]
[WhiteElo "1788"]
[BlackElo "2228"]

1. c4 {[%clk 01:30:58]} {[%emt 00:00:02]} e6 {[%clk 01:30:55]} {[%emt
00:00:05]} 2. Nc3 {[%clk 01:31:21]} {[%emt 00:00:07]} d5 {[%clk 01:31:19]}
{[%emt 00:00:06]} 3. cxd5 {[%clk 01:31:48]} {[%emt 00:00:04]} exd5 {[%clk
01:31:34]} {[%emt 00:00:14]} 4. d4 {[%clk 01:32:14]} {[%emt 00:00:04]} c6
{[%clk 01:31:46]} {[%emt 00:00:18]} 5. Nf3 {[%clk 01:32:32]} {[%emt 00:00:12]}
h6 {[%clk 01:31:13]} {[%emt 00:01:03]} 6. Bf4 {[%clk 01:30:01]} {[%emt
00:03:01]} Bd6 {[%clk 01:31:15]} {[%emt 00:00:27]} 7. Bxd6 {[%clk 01:29:27]}
{[%emt 00:01:05]} Qxd6 {[%emt 00:00:07]} 8. e3 {[%clk 01:28:31]} {[%emt
00:01:24]} Nf6 {[%clk 01:31:49]} {[%emt 00:00:21]} 9. h3 {[%clk 01:26:52]}
{[%emt 00:02:09]} Bf5 {[%clk 01:27:55]} {[%emt 00:04:23]} 10. Bd3 {[%clk
01:24:19]} {[%emt 00:03:04]} Bxd3 {[%clk 01:28:17]} {[%emt 00:00:09]} 11. Qxd3
{[%clk 01:24:41]} {[%emt 00:00:07]} Nbd7 {[%clk 01:28:27]} {[%emt 00:00:19]} 12.
O-O {[%clk 01:21:33]} {[%emt 00:03:39]} O-O {[%clk 01:27:20]} {[%emt 00:01:36]}
13. Rab1 {[%clk 01:11:13]} {[%emt 00:10:50]} Rfe8 {[%clk 01:26:36]} {[%emt
00:01:15]} 14. Nd2 {[%clk 01:04:39]} {[%emt 00:07:04]} a6 {[%clk 01:25:11]}
{[%emt 00:01:54]} 15. b4 {[%clk 01:01:23]} {[%emt 00:03:47]} Qe7 {[%clk
01:20:31]} {[%emt 00:05:09]} 16. a3 {[%clk 00:53:54]} {[%emt 00:08:00]} Nb6
{[%clk 01:18:53]} {[%emt 00:02:07]} 17. a4 {[%clk 00:47:04]} {[%emt 00:07:21]}
g6 {[%clk 01:12:18]} {[%emt 00:07:04]} 18. Rfc1 {[%clk 00:41:11]} {[%emt
00:06:23]} Rec8 {[%clk 01:08:20]} {[%emt 00:04:29]} 19. b5 {[%clk 00:35:34]}
{[%emt 00:06:08]} cxb5 {[%clk 01:08:32]} {[%emt 00:00:17]} 20. axb5 {[%clk
00:35:57]} {[%emt 00:00:07]} a5 {[%clk 01:08:51]} {[%emt 00:00:11]} 21. Nb3
{[%clk 00:32:01]} {[%emt 00:04:27]} Nfd7 {[%clk 01:01:41]} {[%emt 00:07:39]} 22.
Ra1 {[%clk 00:29:32]} {[%emt 00:02:59]} a4 {[%clk 01:00:22]} {[%emt 00:01:50]}
23. Nd2 {[%clk 00:29:55]} {[%emt 00:00:06]} Nf6 {[%clk 00:59:13]} {[%emt
00:01:38]} 24. Nf3 {[%clk 00:28:22]} {[%emt 00:02:04]} Rc7 {[%clk 00:51:20]}
{[%emt 00:08:22]} 25. Rcb1 {[%clk 00:27:22]} {[%emt 00:01:29]} Ne4 {[%clk
00:49:15]} {[%emt 00:02:37]} 26. Na2 {[%clk 00:26:20]} {[%emt 00:01:30]} Rac8
{[%clk 00:46:42]} {[%emt 00:03:04]} 27. Nb4 {[%clk 00:25:28]} {[%emt 00:01:22]}
Rc4 {[%clk 00:35:13]} {[%emt 00:11:59]} 28. Qa3 {[%clk 00:23:15]} {[%emt
00:02:44]} Nc3 {[%clk 00:34:42]} {[%emt 00:01:00]} 0-1

[Event "NJSK 2023 Jeugd B"]
[Site "Almelo, Netherlands"]
[Date "2023.05.01"]
[Round "2.2"]
[White "Van Arendonk, Polle"]
[Black "Smeets, Kobe"]
[Result "1/2-1/2"]
[TimeControl "90min/40moves + 30min + 30sec/move"]
[WhiteElo "1772"]
[BlackElo "2094"]

1. e4 {[%clk 01:30:59]} c5 {[%clk 01:30:52]} {[%emt 00:00:07]} 2. Nf3 {[%clk
01:31:25]} {[%emt 00:00:06]} e6 {[%clk 01:31:15]} {[%emt 00:00:07]} 3. d4
{[%clk 01:31:52]} {[%emt 00:00:03]} cxd4 {[%clk 01:31:40]} {[%emt 00:00:06]} 4.
Nxd4 {[%clk 01:32:18]} {[%emt 00:00:04]} Nc6 {[%clk 01:32:03]} {[%emt
00:00:07]} 5. Nc3 {[%clk 01:32:45]} {[%emt 00:00:02]} Qc7 {[%clk 01:32:20]}
{[%emt 00:00:13]} 6. Be3 {[%clk 01:33:10]} {[%emt 00:00:05]} a6 {[%clk
01:32:40]} {[%emt 00:00:10]} 7. a3 {[%clk 01:33:37]} {[%emt 00:00:04]} b5
{[%clk 01:32:46]} {[%emt 00:00:23]} 8. Be2 {[%clk 01:33:59]} {[%emt 00:00:08]}
Bb7 {[%clk 01:33:01]} {[%emt 00:00:15]} 9. Nxc6 {[%clk 01:33:26]} {[%emt
00:01:02]} Qxc6 {[%clk 01:32:38]} {[%emt 00:00:53]} 10. O-O {[%clk 01:32:30]}
{[%emt 00:01:26]} Rc8 {[%clk 01:31:16]} {[%emt 00:01:52]} 11. Bf3 {[%clk
01:30:12]} {[%emt 00:02:49]} Qc7 {[%clk 01:29:13]} {[%emt 00:02:33]} 12. Qd2
{[%clk 01:24:10]} {[%emt 00:06:33]} Bd6 {[%clk 01:14:21]} {[%emt 00:15:21]} 13.
h3 {[%clk 01:22:09]} {[%emt 00:02:31]} Nf6 {[%clk 01:12:39]} {[%emt 00:02:12]}
14. Rfd1 {[%clk 01:15:48]} {[%emt 00:06:52]} Bh2+ {[%clk 01:10:16]} {[%emt
00:02:52]} 15. Kh1 {[%clk 01:15:51]} {[%emt 00:00:27]} Be5 {[%clk 01:10:39]}
{[%emt 00:00:07]} 16. Bd4 {[%clk 01:14:07]} {[%emt 00:02:15]} d6 {[%clk
01:06:15]} {[%emt 00:04:53]} 17. Bxe5 {[%clk 00:54:57]} {[%emt 00:19:40]} dxe5
{[%clk 01:06:43]} {[%emt 00:00:02]} 18. Qd6 {[%clk 00:55:21]} {[%emt 00:00:06]}
Qxd6 {[%clk 01:02:51]} {[%emt 00:04:22]} 19. Rxd6 {[%clk 00:55:48]} {[%emt
00:00:04]} Rc6 {[%clk 00:58:13]} {[%emt 00:05:07]} 20. Rxc6 {[%clk 00:47:05]}
{[%emt 00:09:13]} Bxc6 {[%clk 00:58:40]} {[%emt 00:00:03]} 21. Kg1 {[%clk
00:46:21]} {[%emt 00:01:14]} Ke7 {[%clk 00:58:41]} {[%emt 00:00:29]} 22. Rd1
{[%clk 00:36:11]} {[%emt 00:10:40]} g5 {[%clk 00:58:21]} {[%emt 00:00:49]} 23.
g3 {[%clk 00:31:16]} {[%emt 00:05:26]} Rc8 {[%clk 00:56:15]} {[%emt 00:02:35]}
24. Rd3 {[%clk 00:25:30]} {[%emt 00:06:17]} a5 {[%clk 00:54:54]} {[%emt
00:01:51]} 25. b4 {[%clk 00:24:29]} {[%emt 00:01:31]} axb4 {[%clk 00:55:12]}
{[%emt 00:00:12]} 26. axb4 {[%clk 00:24:57]} {[%emt 00:00:02]} Be8 {[%clk
00:55:27]} {[%emt 00:00:15]} 27. Be2 {[%clk 00:16:49]} {[%emt 00:08:38]} Rc4
{[%clk 00:53:18]} {[%emt 00:02:39]} 28. f3 {[%clk 00:16:55]} {[%emt 00:00:24]}
Rxb4 {[%clk 00:53:22]} {[%emt 00:00:25]} 29. Kf2 {[%clk 00:14:15]} {[%emt
00:03:10]} Bc6 {[%clk 00:42:50]} {[%emt 00:11:02]} 30. Nd1 {[%clk 00:09:51]}
{[%emt 00:04:55]} Ne8 {[%clk 00:24:15]} {[%emt 00:19:05]} 31. Rb3 {[%clk
00:09:08]} {[%emt 00:01:13]} Rxb3 {[%clk 00:13:31]} {[%emt 00:11:15]} 32. cxb3
{[%clk 00:09:36]} {[%emt 00:00:02]} Kd6 {[%clk 00:13:43]} {[%emt 00:00:17]} 33.
b4 {[%clk 00:09:21]} {[%emt 00:00:45]} Nc7 {[%clk 00:14:07]} {[%emt 00:00:05]}
34. Nc3 {[%clk 00:09:22]} {[%emt 00:00:29]} Na6 {[%clk 00:12:18]} {[%emt
00:02:19]} 35. Na2 {[%clk 00:09:25]} {[%emt 00:00:28]} Kc7 {[%clk 00:09:37]}
{[%emt 00:03:11]} 36. Bd3 {[%clk 00:08:19]} {[%emt 00:01:36]} Kb6 {[%clk
00:08:09]} {[%emt 00:01:58]} 37. Ke3 {[%clk 00:07:58]} {[%emt 00:00:50]} f6
{[%clk 00:08:02]} {[%emt 00:00:37]} 38. Kf2 {[%clk 00:07:04]} {[%emt 00:01:25]}
Bd7 {[%clk 00:07:45]} {[%emt 00:00:47]} 39. g4 {[%clk 00:06:48]} {[%emt
00:00:47]} Nb8 {[%clk 00:05:38]} {[%emt 00:02:36]} 40. Nc3 {[%clk 00:06:29]}
{[%emt 00:00:49]} Bc6 {[%clk 00:05:35]} {[%emt 00:00:33]} 41. Kg3 {[%clk
00:04:40]} {[%emt 00:02:20]} Nd7 {[%clk 00:05:22]} {[%emt 00:00:42]} 42. h4
{[%clk 00:04:13]} {[%emt 00:00:57]} h6 {[%clk 00:05:06]} {[%emt 00:00:46]} 43.
h5 {[%clk 00:03:39]} {[%emt 00:01:04]} Nb8 {[%clk 00:05:32]} {[%emt 00:00:04]}
44. Kf2 {[%clk 00:03:23]} {[%emt 00:00:46]} Na6 {[%clk 00:05:57]} {[%emt
00:00:04]} 45. Na2 {[%clk 00:03:44]} {[%emt 00:00:10]} Bd7 {[%clk 00:05:31]}
{[%emt 00:00:56]} 46. Ke3 {[%clk 00:02:44]} {[%emt 00:01:29]} Nc7 {[%clk
00:03:32]} {[%emt 00:02:29]} 47. Nc3 {[%clk 00:02:06]} {[%emt 00:01:08]} Ne8
{[%clk 00:03:46]} {[%emt 00:00:16]} 48. Ne2 {[%clk 00:29:47]} {[%emt 00:02:50]}
Nd6 {[%clk 00:33:48]} {[%emt 00:00:27]} 49. Nc3 {[%clk 00:29:52]} {[%emt
00:00:26]} Bc8 {[%clk 00:28:08]} {[%emt 00:06:10]} 50. Kf2 {[%clk 00:26:42]}
{[%emt 00:03:40]} Ba6 {[%clk 00:27:35]} {[%emt 00:01:03]} 51. Ke3 {[%clk
00:26:10]} {[%emt 00:01:02]} Nc8 {[%clk 00:27:48]} {[%emt 00:00:17]} 52. Nb1
{[%clk 00:21:57]} {[%emt 00:04:43]} Ne7 {[%clk 00:27:58]} {[%emt 00:00:19]} 53.
Na3 {[%clk 00:21:47]} {[%emt 00:00:41]} Nc6 {[%clk 00:27:34]} {[%emt 00:00:53]}
54. Nc2 {[%clk 00:22:04]} {[%emt 00:00:13]} Bc8 {[%clk 00:27:50]} {[%emt
00:00:13]} 55. Bf1 {[%clk 00:18:43]} {[%emt 00:03:53]} Bd7 {[%clk 00:27:33]}
{[%emt 00:00:47]} 56. Bd3 {[%clk 00:17:50]} {[%emt 00:01:23]} Kc7 {[%clk
00:23:53]} {[%emt 00:04:09]} 57. Bf1 {[%clk 00:13:00]} {[%emt 00:05:21]} f5
{[%clk 00:17:45]} {[%emt 00:06:38]} 58. Be2 {[%clk 00:12:45]} {[%emt 00:00:45]}
Kd6 {[%clk 00:16:20]} {[%emt 00:01:55]} 59. Kd3 {[%clk 00:11:51]} {[%emt
00:01:23]} Nd4 {[%clk 00:02:01]} {[%emt 00:14:49]} 60. Nxd4 {[%clk 00:07:53]}
{[%emt 00:04:28]} fxe4+ {[%clk 00:02:08]} {[%emt 00:00:23]} 61. fxe4 {[%clk
00:07:55]} {[%emt 00:00:28]} exd4 {[%clk 00:02:33]} {[%emt 00:00:05]} 62. Kxd4
{[%clk 00:08:14]} {[%emt 00:00:10]} e5+ {[%clk 00:02:58]} {[%emt 00:00:06]} 63.
Ke3 {[%clk 00:08:36]} {[%emt 00:00:07]} Kc6 {[%clk 00:02:33]} {[%emt 00:00:55]}
64. Kd3 {[%clk 00:08:35]} {[%emt 00:00:32]} Bc8 {[%clk 00:02:51]} {[%emt
00:00:12]} 65. Ke3 {[%clk 00:08:16]} {[%emt 00:00:49]} Be6 {[%clk 00:03:11]}
{[%emt 00:00:09]} 66. Kd3 {[%clk 00:08:16]} {[%emt 00:00:31]} Bc4+ {[%clk
00:02:58]} {[%emt 00:00:42]} 67. Ke3 {[%clk 00:08:42]} {[%emt 00:00:05]} Bxe2
{[%clk 00:01:42]} {[%emt 00:01:45]} 68. Kxe2 {[%clk 00:09:07]} {[%emt
00:00:05]} 1/2-1/2